bitfinex/quotes_BTCUSD_20251117
["timestamp","ask_amount","ask_price","bid_price","bid_amount"]
[1763360368880,0.08412,95300.0,95299.0,0.39578881]
[1763360369235,9e-05,95315.0,95300.0,0.04341874]
[1763360369436,0.00053336,95315.0,95314.0,0.13307881]
[1763360369632,0.08465336,95315.0,95314.0,0.13307881]
[1763360369831,0.08506533,95315.0,95314.0,0.15607881]
[1763360372898,0.08506533,95315.0,95314.0,0.13307881]
[1763360373055,0.42427533,95315.0,95314.0,0.10510881]
[1763360373434,0.40806533,95315.0,95314.0,0.10510881]
[1763360376413,0.08412,95315.0,95314.0,0.10510881]
[1763360377527,0.01621,95315.0,95314.0,0.10510881]
[1763360377895,0.04052,95315.0,95314.0,0.10510881]
[1763360379019,0.01133,95317.0,95314.0,0.10510881]
[1763360379224,0.01146296,95317.0,95314.0,0.10510881]
[1763360379543,0.03577296,95317.0,95314.0,0.10510881]
[1763360379928,0.02431,95316.0,95314.0,0.10510881]
[1763360382443,0.01146296,95317.0,95314.0,0.10510881]
[1763360382645,0.03577296,95317.0,95314.0,0.10510881]
[1763360382847,0.02431,95316.0,95314.0,0.10510881]
[1763360383963,0.01146296,95317.0,95314.0,0.10510881]
[1763360384352,0.03577296,95317.0,95314.0,0.10510881]
[1763360385585,0.40712,95316.0,95314.0,0.10510881]
[1763360386651,0.08412,95316.0,95314.0,0.10510881]
[1763360389584,0.01555,95315.0,95314.0,0.10510881]
[1763360390896,0.01146296,95317.0,95314.0,0.10510881]
[1763360391279,0.03493296,95317.0,95314.0,0.10510881]
[1763360391688,0.00013296,95317.0,95314.0,0.10510881]
[1763360395589,0.08412,95316.0,95314.0,0.10510881]
[1763360396013,0.00013296,95317.0,95315.0,0.03996]
[1763360396178,0.00013296,95317.0,95316.0,0.01577]
[1763360396359,0.08425296,95317.0,95316.0,0.03996]
[1763360396767,0.08425296,95317.0,95316.0,0.13996]
[1763360399552,0.08425296,95317.0,95316.0,0.14096]
[1763360400960,0.08425296,95317.0,95316.0,0.101]
[1763360400961,0.44627296,95317.0,95316.0,0.101]
[1763360401171,0.36215296,95317.0,95316.0,0.001]
[1763360401559,0.33868296,95317.0,95316.0,0.001]
[1763360401759,0.323,95316.0,95314.0,0.10510881]
[1763360402374,0.34647,95316.0,95314.0,0.10510881]
[1763360402574,0.03902,95315.0,95314.0,0.10510881]
[1763360404055,0.00013296,95317.0,95314.0,0.10510881]
[1763360405582,0.08412,95316.0,95314.0,0.10510881]
[1763360410613,0.08412,95316.0,95315.0,0.03996]
[1763360411346,0.00013296,95317.0,95315.0,0.03996]
[1763360411547,0.00013296,95317.0,95316.0,0.03996]
[1763360411754,0.00013296,95317.0,95316.0,0.01577]
[1763360411930,0.00013296,95317.0,95314.0,0.10510881]
[1763360414639,0.00013296,95317.0,95314.0,0.12929881]
[1763360414840,0.00013296,95317.0,95316.0,0.01577]
[1763360415510,0.08425296,95317.0,95316.0,0.01577]
[1763360416126,0.08425296,95317.0,95314.0,0.10510881]
[1763360416410,0.08425296,95317.0,95314.0,0.12864881]
[1763360417099,0.08425296,95317.0,95314.0,0.10510881]
[1763360417393,0.08425296,95317.0,95315.0,0.02303]
[1763360419344,0.08425296,95317.0,95314.0,0.10510881]
[1763360419781,0.08425296,95317.0,95314.0,0.12813881]
[1763360420208,0.08425296,95317.0,95314.0,0.10510881]
[1763360420402,0.08425296,95317.0,95315.0,0.02303]
[1763360421891,0.08425296,95317.0,95316.0,0.01522]
[1763360422096,0.08425296,95317.0,95316.0,0.02681]
[1763360422303,0.08425296,95317.0,95316.0,0.04984]
[1763360424836,0.08425296,95317.0,95316.0,0.01159]
[1763360425039,0.00013296,95317.0,95316.0,0.01159]
[1763360425528,0.08425296,95317.0,95316.0,0.01159]
[1763360430353,0.08425296,95317.0,95316.0,0.03462]
[1763360430576,0.08425296,95317.0,95316.0,0.01159]
[1763360430998,0.08425296,95317.0,95314.0,0.10510881]
[1763360431240,0.00013296,95317.0,95314.0,0.10510881]
[1763360431442,0.02833,95315.0,95314.0,0.10510881]
[1763360431770,0.05131,95315.0,95314.0,0.10510881]
[1763360433129,0.02833,95315.0,95314.0,0.10510881]
[1763360433620,0.01229,95315.0,95314.0,0.10510881]
[1763360435404,0.05131,95315.0,95314.0,0.10510881]
[1763360435617,0.13543,95315.0,95314.0,0.10510881]
[1763360439964,0.05131,95315.0,95313.0,0.1]
[1763360440109,0.05131,95315.0,95296.0,0.10510881]
[1763360440110,0.03902,95314.0,95312.0,0.1]
[1763360440434,0.01604,95305.0,95299.0,0.1]
[1763360440610,0.01604,95304.0,95299.0,0.1]
[1763360440811,0.02833,95304.0,95299.0,0.1]
[1763360441014,0.03527,95303.0,95299.0,0.1]
[1763360441255,0.01604,95300.0,95299.0,0.1]
[1763360441400,0.01604,95300.0,95296.0,0.10510881]
[1763360441600,0.01604,95297.0,95293.0,0.1]
[1763360441799,0.01604,95294.0,95293.0,0.1]
[1763360442200,0.01604,95294.0,95260.0,0.01169]
[1763360442201,0.00999999,95290.0,95273.0,0.1]
[1763360442409,0.02808,95279.0,95273.0,0.1]
[1763360442609,0.02808,95279.0,95268.0,0.1]
[1763360442610,0.02035,95274.0,95268.0,0.1]
[1763360442809,0.02999997,95280.0,95273.0,0.10510881]
[1763360442810,0.32628422,95278.0,95273.0,0.10510881]
[1763360443013,0.323,95277.0,95273.0,0.10510881]
[1763360443233,0.01604,95274.0,95273.0,0.10510881]
[1763360443615,0.01604,95274.0,95273.0,0.10555217]
[1763360443616,0.03902,95274.0,95273.0,0.10555217]
[1763360443821,0.03902,95274.0,95273.0,0.20555217]
[1763360444215,0.03902,95274.0,95273.0,0.20655217]
[1763360444427,0.03902,95274.0,95273.0,0.20755217]
[1763360444633,0.03902,95274.0,95273.0,0.20655217]
[1763360444819,0.03902,95274.0,95273.0,0.20555217]
[1763360445413,0.44614,95274.0,95273.0,0.20555217]
[1763360445614,0.44614,95274.0,95273.0,0.10044336]
[1763360446939,0.36202,95274.0,95273.0,0.10044336]
[1763360447327,0.36202,95274.0,95273.0,0.00044336]
[1763360452953,0.3973911,95274.0,95273.0,0.00044336]
[1763360453557,0.36202,95274.0,95273.0,0.00044336]
[1763360454037,0.37849846,95274.0,95273.0,0.00044336]
[1763360454237,0.36202,95274.0,95273.0,0.00044336]
[1763360454484,0.39358633,95274.0,95273.0,0.00044336]
[1763360455416,0.56190633,95274.0,95273.0,0.00044336]
[1763360457028,0.49730622,95274.0,95273.0,0.00044336]
[1763360458873,0.41314622,95274.0,95273.0,0.00044336]
[1763360461047,0.39016622,95274.0,95273.0,0.00044336]
[1763360461259,0.41329733,95274.0,95273.0,0.00044336]
[1763360461471,0.39373633,95274.0,95273.0,0.00044336]
[1763360462319,0.41329412,95274.0,95273.0,0.00044336]
[1763360462745,0.323,95274.0,95273.0,0.00044336]
[1763360465609,0.40716,95274.0,95273.0,0.00044336]
[1763360466467,0.323,95274.0,95273.0,0.00044336]
[1763360466684,0.323,95274.0,95273.0,0.02787336]
[1763360466890,0.323,95274.0,95273.0,0.05163336]
[1763360467309,0.323,95274.0,95273.0,0.02787336]
[1763360468110,0.34261939,95274.0,95273.0,0.02787336]
[1763360469365,0.323,95274.0,95273.0,0.02787336]
[1763360469570,0.34263838,95274.0,95273.0,0.05163336]
[1763360470484,0.35817838,95274.0,95273.0,0.00044336]
[1763360470712,0.34263838,95274.0,95273.0,0.00044336]
[1763360472200,0.34263838,95274.0,95273.0,0.03994336]
[1763360473694,0.34263838,95274.0,95273.0,0.01618336]
[1763360474915,0.34263838,95274.0,95273.0,0.03994336]
[1763360475136,0.34263838,95274.0,95273.0,0.01618336]
[1763360475516,0.42679838,95274.0,95273.0,0.01618336]
[1763360475899,0.01963838,95274.0,95273.0,0.04071336]
[1763360476101,0.01999998,95290.0,95273.0,0.04071336]
[1763360476102,0.25511838,95290.0,95273.0,0.04071336]
[1763360476328,0.25511838,95290.0,95289.0,0.13343881]
[1763360476329,0.56811839,95290.0,95289.0,0.13343881]
[1763360476674,0.34267251,95290.0,95289.0,0.13343881]
[1763360476827,0.34267251,95290.0,95289.0,0.15796881]
[1763360477442,0.34267251,95290.0,95289.0,0.35796881]
[1763360479048,0.34267251,95290.0,95289.0,0.35896881]
[1763360479221,0.34267251,95290.0,95289.0,0.35996881]
[1763360479594,0.01967251,95290.0,95289.0,0.35896881]
[1763360479882,0.52023675,95300.0,95289.0,0.35996881]
[1763360480025,0.34264913,95299.0,95290.0,0.02398]
[1763360480221,0.01964913,95298.0,95296.0,0.01169]
[1763360480418,0.323,95299.0,95298.0,0.02804]
[1763360481043,0.323,95299.0,95298.0,0.05202]
[1763360481252,0.323,95309.0,95298.0,0.02804]
[1763360481450,0.323,95309.0,95308.0,0.10510881]
[1763360481675,0.34264087,95309.0,95308.0,0.10510881]
[1763360482271,0.01964087,95309.0,95308.0,0.10510881]
[1763360482696,0.0595438,95309.0,95308.0,0.10510881]
[1763360483480,0.0595438,95309.0,95307.0,0.1]
[1763360483704,0.00013293,95309.0,95308.0,0.10510881]
[1763360484237,0.05954216,95309.0,95308.0,0.10510881]
[1763360485528,0.22778216,95309.0,95308.0,0.10510881]
[1763360486291,0.22778216,95309.0,95307.0,0.1]
[1763360486502,0.38240923,95308.0,95307.0,0.1]
[1763360486713,0.38240923,95308.0,95301.0,0.1]
[1763360486924,0.36576923,95307.0,95304.0,0.10510881]
[1763360487067,0.01963923,95306.0,95304.0,0.10510881]
[1763360487278,0.01664,95305.0,95304.0,0.10510881]
[1763360487703,0.03977,95305.0,95304.0,0.10510881]
[1763360489690,0.03977,95305.0,95302.0,0.1]
[1763360489908,0.02082,95303.0,95301.0,0.1]
[1763360490348,0.03977,95302.0,95301.0,0.1]
[1763360490776,0.01664,95302.0,95301.0,0.1]
[1763360490980,0.00418,95303.0,95301.0,0.1]
[1763360491384,0.02731,95303.0,95301.0,0.1]
[1763360492625,0.02731,95303.0,95301.0,0.101]
[1763360492832,0.02731,95303.0,95301.0,0.102]
[1763360494627,0.01664,95302.0,95301.0,0.102]
[1763360495016,0.03977,95302.0,95301.0,0.102]
[1763360495459,0.20801,95302.0,95301.0,0.101]
[1763360495617,0.20801,95302.0,95301.0,0.1]
[1763360495817,0.20801,95302.0,95301.0,0.102]
[1763360496710,0.00013293,95309.0,95301.0,0.102]
[1763360496939,0.00013293,95309.0,95308.0,0.10510881]
[1763360497167,0.02082,95302.0,95301.0,0.102]
[1763360497821,0.04395,95302.0,95301.0,0.102]
[1763360498030,0.04395,95302.0,95301.0,0.101]
[1763360498460,0.04395,95302.0,95301.0,0.1]
[1763360498906,0.04395,95302.0,95301.0,0.101]
[1763360499444,0.04395,95302.0,95301.0,0.102]
[1763360502207,0.09517214,95302.0,95301.0,0.102]
[1763360502419,0.04341874,95299.0,95289.0,0.1]
[1763360502636,0.04341874,95299.0,95267.0,0.10510881]
[1763360502637,0.02999997,95290.0,95283.0,0.1]
[1763360502810,0.01249,95284.0,95277.0,0.1]
[1763360503257,0.02313,95283.0,95282.0,0.10510881]
[1763360503466,0.05312997,95283.0,95282.0,0.10510881]
[1763360503846,0.06976997,95283.0,95282.0,0.10510881]
[1763360504086,0.06976997,95283.0,95282.0,0.20510881]
[1763360504743,0.06976997,95283.0,95282.0,0.1]
[1763360505193,0.03977,95283.0,95282.0,0.1]
[1763360505508,0.53101,95283.0,95282.0,0.1]
[1763360505758,0.323,95282.0,95277.0,0.1]
[1763360506067,0.34754,95282.0,95277.0,0.1]
[1763360506307,0.02782,95278.0,95277.0,0.1]
[1763360506726,0.05236,95278.0,95277.0,0.1]
[1763360507501,0.05236,95278.0,95277.0,0.10044336]
[1763360509611,0.05236,95278.0,95277.0,0.00044336]
[1763360510976,0.05236,95278.0,95277.0,0.00244336]
[1763360511416,0.05236,95278.0,95277.0,0.10144336]
[1763360511597,0.05236,95278.0,95277.0,0.10044336]
[1763360512541,0.06200151,95278.0,95277.0,0.10044336]
[1763360512748,0.36641874,95277.0,95272.0,0.1]
[1763360512954,0.02999997,95250.0,95244.0,0.1]
[1763360513105,0.00463,95234.0,95224.0,0.01152]
[1763360513306,0.02065,95234.0,95233.0,0.10524185]
[1763360513532,0.00999999,95240.0,95233.0,0.10524185]
[1763360515549,0.08416,95239.0,95233.0,0.10524185]
[1763360518362,0.08416,95239.0,95233.0,0.20524185]
[1763360519134,0.08416,95239.0,95233.0,0.21676185]
[1763360520468,0.323,95243.0,95238.0,0.01642]
[1763360520603,0.323,95243.0,95242.0,0.02794]
[1763360520806,0.323,95243.0,95242.0,0.01152]
[1763360521156,0.323,95243.0,95242.0,0.05216]
[1763360522945,0.323,95243.0,95242.0,0.02794]
[1763360524236,0.323,95243.0,95242.0,0.05216]
[1763360525593,0.40716,95243.0,95242.0,0.15216]
[1763360525791,0.01999998,95250.0,95242.0,0.15216]
[1763360526041,0.00999999,95250.0,95249.0,0.13304881]
[1763360526454,0.18347476,95260.0,95249.0,0.15726881]
[1763360526667,0.01648099,95266.0,95250.0,0.02422]
[1763360526857,0.01049493,95268.0,95265.0,0.12152881]
[1763360526998,0.01049493,95268.0,95265.0,0.10510881]
[1763360527351,0.323,95269.0,95267.0,0.02794]
[1763360527496,0.323,95269.0,95267.0,0.01152]
[1763360527698,0.01602,95268.0,95265.0,0.10510881]
[1763360527897,0.33366998,95269.0,95265.0,0.10510881]
[1763360528096,0.02454,95268.0,95265.0,0.10524185]
[1763360528301,0.01066998,95269.0,95267.0,0.1]
[1763360528596,0.03054,95273.0,95267.0,0.1]
[1763360528998,0.041249,95273.0,95267.0,0.1]
[1763360529859,0.016709,95273.0,95272.0,0.1]
[1763360530314,0.032729,95273.0,95272.0,0.1]
[1763360530504,0.057269,95273.0,95272.0,0.1]
[1763360532131,0.07688863,95273.0,95265.0,0.20524185]
[1763360532329,0.04416208,95272.0,95265.0,0.20524185]
[1763360532573,0.02454,95272.0,95265.0,0.20524185]
[1763360535494,0.08416,95271.0,95265.0,0.20524185]
[1763360538558,0.323,95274.0,95270.0,0.01663]
[1763360538769,0.323,95274.0,95273.0,0.02815]
[1763360539005,0.01578,95267.0,95265.0,0.10013304]
[1763360539204,0.03541471,95266.0,95265.0,0.10013304]
[1763360539423,0.04252318,95266.0,95265.0,0.00013304]
[1763360539771,0.06615318,95266.0,95265.0,0.00013304]
[1763360540495,0.05904471,95266.0,95265.0,0.00013304]
[1763360545428,0.14320471,95266.0,95265.0,0.00013304]
[1763360545591,0.58193506,95266.0,95265.0,0.00013304]
[1763360546275,0.49777506,95266.0,95265.0,0.00013304]
[1763360548124,0.41361506,95266.0,95265.0,0.00013304]
[1763360548327,0.45782866,95266.0,95265.0,0.00013304]
[1763360548527,0.48045088,95266.0,95265.0,0.00013304]
[1763360548734,0.52386962,95266.0,95265.0,0.00013304]
[1763360549041,0.55726095,95266.0,95265.0,0.00013304]
[1763360549626,0.55926095,95266.0,95265.0,0.00013304]
[1763360549943,0.55826095,95266.0,95265.0,0.00013304]
[1763360550148,0.55726095,95266.0,95265.0,0.00013304]
[1763360550361,0.55826095,95266.0,95265.0,0.00013304]
[1763360551341,0.55926095,95266.0,95265.0,0.00013304]
[1763360551534,0.01999998,95230.0,95217.0,0.1]
[1763360551755,0.323,95226.0,95217.0,0.10013306]
[1763360551965,0.02782,95218.0,95217.0,0.10013306]
[1763360552324,0.05145,95218.0,95217.0,0.10013306]
[1763360553227,0.05145,95218.0,95191.0,0.10510881]
[1763360553228,0.09486874,95218.0,95180.0,0.0004]
[1763360553437,0.04341874,95198.0,95180.0,0.0004]
[1763360553637,0.04341874,95189.0,95180.0,0.0004]
[1763360553774,0.02782,95181.0,95180.0,0.00084389]
[1763360553974,0.04741853,95181.0,95180.0,0.00084389]
[1763360554176,0.07104853,95181.0,95180.0,0.00084389]
[1763360554775,0.08156566,95181.0,95180.0,0.00084389]
[1763360555392,0.48872566,95181.0,95180.0,0.00084389]
[1763360555639,0.66829634,95181.0,95180.0,0.00084389]
[1763360557616,0.68479149,95181.0,95180.0,0.00084389]
[1763360557810,0.66829634,95181.0,95180.0,0.00084389]
[1763360561080,0.42106092,95181.0,95180.0,0.00084389]
[1763360562051,0.01051713,95181.0,95180.0,0.00084389]
[1763360562405,0.01204,95184.0,95180.0,0.00084389]
[1763360562606,0.01940784,95183.0,95180.0,0.00084389]
[1763360562838,0.03567,95184.0,95180.0,0.00084389]
[1763360563050,0.03020602,95183.0,95181.0,0.10510881]
[1763360563259,0.03567,95184.0,95181.0,0.10510881]
[1763360563464,0.01940772,95183.0,95181.0,0.10510881]
[1763360563676,0.01940772,95182.0,95181.0,0.10510881]
[1763360564509,0.01940772,95182.0,95180.0,0.00084389]
[1763360564733,0.01940772,95181.0,95180.0,0.00084389]
[1763360565399,0.01940772,95182.0,95180.0,0.00084389]
[1763360565581,0.18788772,95181.0,95180.0,0.00084389]
[1763360565895,0.46652434,95181.0,95180.0,0.00084389]
[1763360566099,0.38228434,95181.0,95180.0,0.00084389]
[1763360566277,0.40589434,95181.0,95180.0,0.00084389]
[1763360568747,0.02999997,95180.0,95171.0,0.002]
[1763360568946,0.48797755,95172.0,95171.0,0.00213311]
[1763360569213,0.50738527,95172.0,95171.0,0.00213311]
[1763360569437,0.5657366,95172.0,95171.0,0.00213311]
[1763360569902,0.46062779,95172.0,95171.0,0.00213311]
[1763360571474,0.42588646,95172.0,95171.0,0.00213311]
[1763360571672,0.05946772,95172.0,95171.0,0.00213311]
[1763360572091,0.06541449,95172.0,95171.0,0.00213311]
[1763360574627,0.05946772,95172.0,95171.0,0.00213311]
[1763360575432,0.14370772,95172.0,95171.0,0.00213311]
[1763360575637,0.22794772,95172.0,95171.0,0.00213311]
[1763360575795,0.24444309,95172.0,95171.0,0.00213311]
[1763360576224,0.22794772,95172.0,95171.0,0.00213311]
[1763360577203,0.05946772,95172.0,95171.0,0.00213311]
[1763360579207,0.07596395,95172.0,95171.0,0.00213311]
[1763360581483,0.03590395,95172.0,95171.0,0.00213311]
[1763360581631,0.01940772,95172.0,95171.0,0.00213311]
[1763360585193,0.03585772,95172.0,95171.0,0.00213311]
[1763360585523,0.51088772,95172.0,95171.0,0.00213311]
[1763360585732,0.36495611,95172.0,95171.0,0.00213311]
[1763360586077,0.01940772,95172.0,95171.0,0.05324311]
[1763360586277,0.05061409,95193.0,95171.0,0.05860742]
[1763360586535,0.0196452,95192.0,95177.0,0.10510881]
[1763360586737,0.01064884,95206.0,95199.0,0.01983]
[1763360586961,0.01155,95209.0,95199.0,0.01983]
[1763360587249,0.33455,95209.0,95199.0,0.01983]
[1763360587460,0.01155,95209.0,95199.0,0.01983]
[1763360587884,0.34533434,95209.0,95199.0,0.01983]
[1763360588105,0.27910904,95210.0,95208.0,0.11701881]
[1763360588304,0.323,95219.0,95208.0,0.11701881]
[1763360588679,0.33358386,95219.0,95208.0,0.11701881]
[1763360589086,0.01058386,95219.0,95208.0,0.11701881]
[1763360589285,0.00044326,95219.0,95208.0,0.11701881]
[1763360589486,0.00044326,95219.0,95218.0,0.01191]
[1763360589692,0.00044326,95219.0,95218.0,0.02739]
[1763360590010,0.00044326,95219.0,95218.0,0.05123]
[1763360590798,0.00044326,95219.0,95218.0,0.15123]
[1763360591438,0.00044326,95219.0,95218.0,0.25123]
[1763360591879,0.00044326,95219.0,95218.0,0.25323]
[1763360592011,0.00044326,95219.0,95218.0,0.11391]
[1763360592218,0.01199326,95219.0,95218.0,0.102]
[1763360592820,0.01199326,95219.0,95218.0,0.104]
[1763360593240,0.01199326,95219.0,95218.0,0.102]
[1763360593619,0.01199326,95219.0,95218.0,0.103]
[1763360593848,0.00044326,95219.0,95218.0,0.101]
[1763360594044,0.01689326,95219.0,95218.0,0.101]
[1763360594222,0.01689326,95219.0,95218.0,0.102]
[1763360594658,0.04050326,95219.0,95218.0,0.002]
[1763360594997,0.01689326,95219.0,95218.0,0.002]
[1763360595344,0.01689326,95219.0,95218.0,0.001]
[1763360595692,0.323,95218.0,95210.0,0.01191]
[1763360595895,0.37819032,95218.0,95210.0,0.01191]
[1763360596098,0.01614,95211.0,95209.0,0.10510881]
[1763360596305,0.01614,95210.0,95209.0,0.10510881]
[1763360596505,0.04613997,95210.0,95199.0,0.1]
[1763360596706,0.02808,95200.0,95195.0,0.1]
[1763360596911,0.01194,95200.0,95195.0,0.1]
[1763360597112,0.01568,95196.0,95195.0,0.1]
[1763360597538,0.03934,95196.0,95178.0,0.01191]
[1763360597715,0.01568,95193.0,95178.0,0.01191]
[1763360598636,0.01568,95193.0,95182.0,0.1]
[1763360599140,0.01568,95193.0,95192.0,0.10610881]
[1763360599500,0.01568,95193.0,95192.0,0.10710881]
[1763360603186,0.04193997,95200.0,95192.0,0.10710881]
[1763360604094,0.323,95199.0,95192.0,0.10710881]
[1763360604294,0.323,95199.0,95192.0,0.10610881]
[1763360604661,0.323,95199.0,95192.0,0.10510881]
[1763360605481,0.4072,95198.0,95192.0,0.10510881]
[1763360606321,0.02999997,95190.0,95182.0,0.1]
[1763360606499,0.01568,95183.0,95182.0,0.1]
[1763360606977,0.03934,95183.0,95182.0,0.1]
[1763360607117,0.05079,95183.0,95182.0,0.1]
[1763360607540,0.05079,95183.0,95182.0,0.10013311]
[1763360608074,0.05079,95183.0,95182.0,0.10113311]
[1763360608759,0.05079,95183.0,95182.0,0.10213311]
[1763360612240,0.02713,95183.0,95182.0,0.10213311]
[1763360612449,0.02999997,95190.0,95182.0,0.1623373]
[1763360612450,0.00999999,95190.0,95182.0,0.1623373]
[1763360612660,0.00999999,95190.0,95189.0,0.00596]
[1763360613277,0.00999999,95190.0,95183.0,0.00596]
[1763360614215,0.01568,95184.0,95182.0,0.10013311]
[1763360614442,0.01568,95183.0,95182.0,0.00013311]
[1763360614860,0.03934,95183.0,95182.0,0.00013311]
[1763360615468,0.53074,95183.0,95182.0,0.00013311]
[1763360620908,0.46303551,95183.0,95182.0,0.00013311]
[1763360622988,0.37883551,95183.0,95182.0,0.00013311]
[1763360623119,0.03217551,95183.0,95182.0,0.00013311]
[1763360623730,0.02426355,95183.0,95182.0,0.00013311]
[1763360623925,0.01568,95183.0,95182.0,0.00013311]
[1763360624125,0.02999997,95190.0,95182.0,0.00013311]
[1763360624317,0.02999997,95190.0,95187.0,0.10510881]
[1763360624521,0.00999999,95190.0,95187.0,0.10510881]
[1763360624925,0.01568,95188.0,95187.0,0.10510881]
[1763360625239,0.045419,95188.0,95187.0,0.10510881]
[1763360625461,0.452659,95188.0,95187.0,0.10510881]
[1763360625837,0.44658,95188.0,95187.0,0.10510881]
[1763360630305,0.36234,95188.0,95187.0,0.10510881]
[1763360630508,0.33868,95188.0,95187.0,0.10510881]
[1763360632431,0.36136,95188.0,95187.0,0.10510881]
[1763360633198,0.33868,95188.0,95187.0,0.10510881]
[1763360634894,0.323,95188.0,95187.0,0.10510881]
[1763360635543,0.40724,95188.0,95187.0,0.10510881]
[1763360636206,0.40724,95188.0,95187.0,0.10710881]
[1763360639129,0.323,95188.0,95187.0,0.10710881]
[1763360645642,0.40724,95188.0,95187.0,0.10710881]
[1763360646603,0.45197229,95188.0,95187.0,0.10710881]
[1763360646998,0.08424,95188.0,95187.0,0.10710881]
[1763360647203,0.01214,95191.0,95187.0,0.10710881]
[1763360648020,0.01214,95191.0,95187.0,0.10610881]
[1763360648222,0.01214,95191.0,95187.0,0.10710881]
[1763360648427,0.01214,95191.0,95187.0,0.10610881]
[1763360648624,0.01214,95191.0,95187.0,0.10710881]
[1763360649248,0.01145,95193.0,95187.0,0.10710881]
[1763360649488,0.01649288,95195.0,95187.0,0.10710881]
[1763360650581,0.02268,95194.0,95187.0,0.10710881]
[1763360651079,0.02268,95194.0,95187.0,0.10610881]
[1763360651080,0.02749,95188.0,95187.0,0.10610881]
[1763360651320,0.323,95196.0,95187.0,0.10710881]
[1763360651547,0.323,95196.0,95187.0,0.10610881]
[1763360651742,0.34568,95196.0,95187.0,0.10610881]
[1763360651944,0.34568,95196.0,95187.0,0.10510881]
[1763360652394,0.323,95196.0,95187.0,0.10610881]
[1763360652580,0.02268,95195.0,95187.0,0.10610881]
[1763360652785,0.02268,95195.0,95187.0,0.10510881]
[1763360655421,0.08424,95194.0,95187.0,0.10510881]
[1763360655623,0.01131,95188.0,95187.0,0.10510881]
[1763360656486,0.01131,95188.0,95187.0,0.10610881]
[1763360656915,0.09555,95188.0,95187.0,0.10610881]
[1763360657747,0.09555,95188.0,95187.0,0.10510881]
[1763360658115,0.09555,95188.0,95187.0,0.10610881]
[1763360658350,0.09555,95188.0,95187.0,0.10710881]
[1763360658950,0.01131,95188.0,95187.0,0.10710881]
[1763360662764,0.02305,95193.0,95187.0,0.10710881]
[1763360663408,0.01222,95192.0,95187.0,0.10710881]
[1763360663586,0.01222,95192.0,95187.0,0.10610881]
[1763360663809,0.01222,95192.0,95187.0,0.10510881]
[1763360664074,0.01222,95192.0,95187.0,0.10610881]
[1763360664200,0.01222,95192.0,95187.0,0.10710881]
[1763360664402,0.01222,95192.0,95187.0,0.10510881]
[1763360664772,0.01649217,95199.0,95191.0,0.016]
[1763360664944,0.01649217,95199.0,95188.0,0.02095919]
[1763360664945,0.01649217,95199.0,95188.0,0.04578919]
[1763360665120,0.33719855,95210.0,95198.0,0.016]
[1763360665323,0.32719856,95210.0,95209.0,0.10510881]
[1763360665489,0.08424,95210.0,95209.0,0.10510881]
[1763360665844,0.01222,95214.0,95209.0,0.10510881]
[1763360666074,0.03573,95214.0,95209.0,0.10510881]
[1763360666698,0.02351,95213.0,95209.0,0.10510881]
[1763360667460,0.17359927,95220.0,95212.0,0.016]
[1763360667808,0.00999999,95220.0,95212.0,0.016]
[1763360668657,0.03044323,95220.0,95212.0,0.117]
[1763360668857,0.03044323,95220.0,95212.0,0.118]
[1763360669538,0.03044323,95220.0,95212.0,0.102]
[1763360669741,0.02871,95213.0,95212.0,0.002]
[1763360670170,0.05222,95213.0,95212.0,0.002]
[1763360670501,0.05222,95213.0,95209.0,0.10510881]
[1763360670907,0.05222,95213.0,95212.0,0.001]
[1763360673429,0.01222,95213.0,95212.0,0.002]
[1763360673611,0.05395323,95220.0,95212.0,0.002]
[1763360674020,0.03044323,95220.0,95212.0,0.002]
[1763360674275,0.02351,95219.0,95212.0,0.002]
[1763360674472,0.02351,95219.0,95212.0,0.001]
[1763360675084,0.02351,95219.0,95209.0,0.10510881]
[1763360675310,0.323,95218.0,95209.0,0.10510881]
[1763360675441,0.0842,95217.0,95209.0,0.10510881]
[1763360676191,0.02351,95216.0,95209.0,0.10510881]
[1763360676518,0.01649,95210.0,95209.0,0.10510881]
[1763360676973,0.00999999,95200.0,95193.0,0.01031]
[1763360677654,0.00999999,95200.0,95189.0,0.1]
[1763360677655,0.01649,95194.0,95189.0,0.1]
[1763360677869,0.02351,95199.0,95189.0,0.1]
[1763360678739,0.02351,95199.0,95193.0,0.001]
[1763360679194,0.02351,95199.0,95194.0,0.1]
[1763360679643,0.01649,95195.0,95194.0,0.1]
[1763360679856,0.02351,95199.0,95194.0,0.1]
[1763360680502,0.02999997,95200.0,95194.0,0.1]
[1763360680951,0.02999997,95200.0,95194.0,0.101]
[1763360681164,0.03498,95201.0,95187.0,0.10510881]
[1763360681165,0.03498,95201.0,95195.0,0.1]
[1763360682370,0.03498,95201.0,95195.0,0.101]
[1763360683177,0.03498,95201.0,95195.0,0.102]
[1763360683400,0.03498,95201.0,95195.0,0.101]
[1763360683944,0.03498,95201.0,95195.0,0.102]
[1763360685173,0.03498,95201.0,95195.0,0.101]
[1763360685559,0.4072,95200.0,95195.0,0.101]
[1763360685972,0.43159,95200.0,95195.0,0.102]
[1763360686116,0.03158701,95199.0,95195.0,0.102]
[1763360686663,0.03158701,95199.0,95195.0,0.101]
[1763360686852,0.03158701,95199.0,95195.0,0.1]
[1763360687169,0.03158701,95199.0,95195.0,0.102]
[1763360687389,0.03158701,95199.0,95195.0,0.12401]
[1763360687530,0.03158701,95199.0,95195.0,0.12301]
[1763360687894,0.03158701,95199.0,95196.0,0.02301]
[1763360688039,0.03158701,95199.0,95195.0,0.101]
[1763360688376,0.03158701,95199.0,95195.0,0.1]
[1763360688785,0.03158701,95199.0,95195.0,0.102]
[1763360689026,0.03158701,95199.0,95195.0,0.101]
[1763360689307,0.03158701,95199.0,95196.0,0.1]
[1763360690546,0.03158701,95199.0,95196.0,0.102]
[1763360695410,0.0842,95198.0,95196.0,0.102]
[1763360696021,0.11578561,95198.0,95196.0,0.102]
[1763360696220,0.11578561,95198.0,95196.0,0.1]
[1763360696427,0.11578561,95198.0,95196.0,0.101]
[1763360696683,0.11578561,95198.0,95196.0,0.102]
[1763360696932,0.0842,95198.0,95196.0,0.102]